[Event "Fall Chess Classic-A 2018"]
[Site "Saint Louis"]
[Date "2018.10.10"]
[Round "1"]
[White "Dreev, Aleksey"]
[Black "Bruzon Batista, Lazaro"]
[Result "1-0"]
[ECO "E12"]
[WhiteElo "2649"]
[BlackElo "2653"]
[Annotator "ChessBase"]
[PlyCount "145"]
[EventDate "2018.10.10"]
[EventType "tourn"]
[EventCountry "USA"]
[SourceTitle "playchess.com"]
[Source "ChessBase"]
[SourceQuality "1"]
[TimeControl "40/5400+30:1800+30"]

1. d4 {[%emt 0:00:00]} Nf6 {[%emt 0:00:00]} 2. Nf3 {[%emt 0:00:00]} e6 {[%emt 0:00:00]} 3. c4 {[%emt 0:00:00]} b6 {[%emt 0:00:00]} 4. a3 {[%emt 0:00:33]} Bb7 {[%emt 0:00:06]} 5. Nc3 {[%emt 0:00:11]} d5 {[%emt 0:00:10]} 6. cxd5 {[%emt 0:06:12]} Nxd5 {[%emt 0:00:19]} 7. Qc2 {[%emt 0:00:35]} Be7 {[%emt 0:03:41]} 8. Bd2 {[%emt 0:01:10]} Nxc3 {[%emt 0:01:51]} 9. Bxc3 {[%emt 0:00:52]} Qd5 {[%emt 0:00:32]} 10. e3 {[%emt 0:14:30]} Nd7 {[%emt 0:01:22]} 11. Bd3 {[%emt 0:01:42]} Qh5 {[%emt 0:00:18]} 12. Be2 {[%emt 0:18:53]} Qf5 {[%emt 0:11:02]} 13. Qxf5 {[%emt 0:09:06]} exf5 {[%emt 0:00:04]} 14. O-O {[%emt 0:00:06]} O-O {[%emt 0:01:17]} 15. Rfd1 {[%emt 0:00:34]} Rfd8 {[%emt 0:05:17]} 16. Rac1 {[%emt 0:00:36]} Rac8 {[%emt 0:09:36]} 17. Bc4 {[%emt 0:01:07]} Kf8 {[%emt 0:01:26]} 18. h3 {[%emt 0:07:59]} c5 {[%emt 0:04:50]} 19. Ba2 {[%emt 0:05:52]} g6 {[%emt 0:13:43]} 20. dxc5 {[%emt 0:00:58]} Nxc5 {[%emt 0:01:21]} 21. Rxd8+ {[%emt 0:00:36]} Rxd8 {[%emt 0:00:12]} 22. Ne5 {[%emt 0:04:22]} f6 {[%emt 0:10:34]} 23. Nf3 {[%emt 0:00:23]} Bd5 {[%emt 0:05:02]} 24. Bxd5 {[%emt 0:00:28]} Rxd5 {[%emt 0:00:02]} 25. Nd4 {[%emt 0:01:36]} f4 {[%emt 0:05:42]} 26. b4 {[%emt 0:02:26]} Ne4 {[%emt 0:07:27]} 27. Ne6+ {[%emt 0:00:44]} Kf7 {[%emt 0:00:03]} 28. Nxf4 {[%emt 0:00:13]} Nxc3 {[%emt 0:00:10]} 29. Rxc3 {[%emt 0:01:01]} Rd1+ {[%emt 0:00:29]} 30. Kh2 {[%emt 0:00:06]} Rd2 {[%emt 0:00:58]} 31. Kg3 {[%emt 0:06:57]} g5 {[%emt 0:06:50]} 32. Nd3 {[%emt 0:00:30]} Ke6 {[%emt 0:00:47]} 33. Kf3 {[%emt 0:01:34]} Kd5 {[%emt 0:03:39]} 34. g4 {[%emt 0:04:40]} a6 {[%emt 0:01:21]} 35. Nc1 {[%emt 0:00:50]} Bd6 {[%emt 0:01:56]} 36. Rc8 {[%emt 0:03:06]} Rd1 {[%emt 0:02:18]} 37. Ne2 {[%emt 0:01:15]} Rh1 {[%emt 0:01:57]} 38. Nc3+ {[%emt 0:04:22]} Ke6 {[%emt 0:00:06]} 39. Ke2 {[%emt 0:00:21]} Ra1 {[%emt 0:02:17]} 40. Rc6 {[%emt 0:00:00]} Rxa3 {[%emt 0:00:00]} 41. Ne4 {[%emt 0:06:37]} Kd5 {[%emt 0:00:42]} 42. Rxd6+ {[%emt 0:00:35]} Kxe4 {[%emt 0:00:05]} 43. Rxb6 {[%emt 0:01:30]} Ra2+ {[%emt 0:03:30]} 44. Kf1 {[%emt 0:00:12]} Ke5 {[%emt 0:06:02]} 45. Kg2 {[%emt 0:01:16]} Ra1 {[%emt 0:08:04]} 46. f4+ {[%emt 0:12:06]} gxf4 {[%emt 0:00:36]} 47. exf4+ {[%emt 0:00:08]} Kxf4 {[%emt 0:02:34]} 48. Rxf6+ {[%emt 0:00:10]} Kg5 {[%emt 0:01:41]} 49. Rf5+ {[%emt 0:00:21]} Kg6 {[%emt 0:00:11]} 50. Ra5 {[%emt 0:00:09]} Rb1 {[%emt 0:00:08]} 51. Rxa6+ {[%emt 0:00:06]} Kg5 {[%emt 0:00:03]} 52. Ra5+ {[%emt 0:00:09]} Kg6 {[%emt 0:00:06]} 53. Rb5 {[%emt 0:00:28]} Rb2+ {[%emt 0:04:20]} 54. Kg3 {[%emt 0:01:04]} Rb3+ {[%emt 0:00:03]} 55. Kh4 {[%emt 0:00:25]} h6 {[%emt 0:02:02]} 56. Rb6+ {[%emt 0:00:58]} Kh7 {[%emt 0:00:47]} 57. Rb8 {[%emt 0:06:17]} Kg6 {[%emt 0:00:31]} 58. Rb7 {[%emt 0:01:17]} Kf6 {[%emt 0:02:22]} 59. Rb6+ {[%emt 0:00:13]} Kg7 {[%emt 0:00:09]} 60. b5 {[%emt 0:00:05]} Kh7 {[%emt 0:01:41]} 61. g5 {[%emt 0:01:00]} hxg5+ {[%emt 0:00:04]} 62. Kxg5 {[%emt 0:00:05]} Rxh3 {[%emt 0:00:44]} 63. Rb7+ {[%emt 0:01:50]} Kg8 {[%emt 0:00:15]} 64. b6 {[%emt 0:00:38]} Rb3 {[%emt 0:02:27]} 65. Kf6 {[%emt 0:00:32]} Rb1 {[%emt 0:00:03]} 66. Rb8+ {[%emt 0:01:06]} Kh7 {[%emt 0:00:05]} 67. Ke6 {[%emt 0:00:43]} Kg7 {[%emt 0:00:06]} 68. Kd6 {[%emt 0:00:43]} Kf7 {[%emt 0:00:18]} 69. Kc6 {[%emt 0:00:26]} Ke7 {[%emt 0:00:15]} 70. Rh8 {[%emt 0:00:38]} Rc1+ {[%emt 0:00:46]} 71. Kd5 {[%emt 0:02:59]} Rd1+ {[%emt 0:02:57]} 72. Ke5 {[%emt 0:00:58]} Re1+ {[%emt 0:01:40]} 73. Kf4 {[%emt 0:01:13]} 1-0

[Event "Fall Chess Classic-A 2018"]
[Site "Saint Louis"]
[Date "2018.10.14"]
[Round "5"]
[White "Kuzubov, Yuriy"]
[Black "Hammer, Jon Ludvig"]
[Result "1-0"]
[ECO "D70"]
[WhiteElo "2655"]
[BlackElo "2662"]
[Annotator "RC"]
[PlyCount "75"]
[EventDate "2018.10.10"]
[EventType "tourn"]
[EventCountry "USA"]
[SourceTitle "playchess.com"]
[Source "ChessBase"]
[SourceQuality "1"]
[TimeControl "40/5400+30:1800+30"]

1. d4 {[%emt 0:00:00]} Nf6 {[%emt 0:00:00]} 2. c4 {[%emt 0:00:00]} g6 {[%emt 0:00:00]} 3. Nf3 {[%emt 0:00:57]} Bg7 {[%emt 0:00:00]} 4. g3 {[%emt 0:00:06]} c6 {[%emt 0:00:00]} 5. Bg2 {[%emt 0:00:23]} d5 {[%emt 0:00:04]} 6. Nbd2 {[%emt 0:03:52]} O-O {[%emt 0:08:17]} 7. O-O {[%emt 0:00:16]} Bf5 {[%emt 0:00:15]} 8. b3 {[%emt 0:00:28]} Qa5 {[%emt 0:26:02]} 9. Bb2 {[%emt 0:01:01]} Ne4 {[%emt 0:00:36]} 10. e3 {[%emt 0:15:01]} Nxd2 {[%emt 0:05:05]} 11. Nxd2 {[%emt 0:05:29]} Bd3 {[%emt 0:00:40]} 12. Re1 {[%emt 0:01:37]} Nd7 {[%emt 0:04:13]} 13. a3 {[%emt 0:11:40]} Nf6 {[%emt 0:21:26]} 14. Rc1 {[%emt 0:01:23]} Bf5 {[%emt 0:00:18]} 15. b4 {[%emt 0:02:59]} Qb6 {[%emt 0:00:12]} 16. Nb3 {[%emt 0:08:51]} Rad8 {[%emt 0:01:40]} 17. h3 {[%emt 0:06:36]} h5 {[%emt 0:01:27]} 18. Qe2 {[%emt 0:01:06]} g5 {[%emt 0:01:02]} 19. Nc5 {[%emt 0:04:35]} g4 {[%emt 0:00:07]} 20. h4 {[%emt 0:01:55]} Ne4 {[%emt 0:00:08]} 21. cxd5 {[%emt 0:00:41]} cxd5 {[%emt 0:00:31]} 22. Nxe4 {[%emt 0:01:24]} Bxe4 {[%emt 0:00:05]} 23. Bxe4 {[%emt 0:00:19]} dxe4 {[%emt 0:00:02]} 24. Rc5 {[%emt 0:01:01]} f5 {[%emt 0:01:10]} 25. Rec1 {[%emt 0:03:46]} e6 {[%emt 0:00:14]} 26. b5 {[%emt 0:01:25]} Rf7 {[%emt 0:00:26]} 27. Qc4 {[%emt 0:05:21]} a6 {[%emt 0:05:26]} 28. a4 {[%emt 0:01:21]} axb5 {[%emt 0:00:04]} 29. Rxb5 {[%emt 0:02:29]} Qa6 {[%emt 0:00:20]} 30. Qb3 {[%emt 0:01:34]} Rd6 {[%emt 0:03:16]} 31. Rc8+ {[%emt 0:11:58]} Kh7 {[%emt 0:00:02]} 32. d5 {[%emt 0:01:04]} exd5 {[%emt 0:13:15]} 33. Rxd5 {[%emt 0:00:59]} Rfd7 {[%emt 0:06:00]} 34. Rxd6 {[%emt 0:02:06]} Qxd6 {[%emt 0:00:10]} 35. Qg8+ {[%emt 0:00:10]} Kh6 {[%emt 0:01:21]} 36. Re8 {[%emt 0:00:29]} Bxb2 {[%emt 0:03:34]} 37. Re6+ {[%emt 0:00:07]} Bf6 {[%emt 0:00:05]} 38. Qh8+ {[%emt 0:00:26]} 1-0